fUSD/lending_fUSD_20260401
["ID","MTS","AMOUNT","RATE_DAILY","PERIOD"]
[419230622,1775025105423,-663.501084,0.0004288,120]
[419230623,1775025105434,-151.0,0.0004288,120]
[419230624,1775025105445,-2803.308424,0.0004288,120]
[419230625,1775025105456,-985.594617,0.0004288,120]
[419230626,1775025105467,-175.208189,0.0004288,120]
[419230627,1775025105478,-2367.678133,0.0004288,120]
[419230628,1775025105490,-513.5472,0.0004288,120]
[419230629,1775025105501,-423.578903,0.0004288,120]
[419230630,1775025105513,-151.0,0.0004288,120]
[419230631,1775025105524,-151.0,0.0004288,120]
[419230632,1775025105536,-2367.678133,0.0004288,120]
[419230633,1775025105548,-513.5472,0.0004288,120]
[419230634,1775025105560,-973.11877,0.0004288,120]
[419230635,1775025105572,-423.578903,0.0004288,120]
[419230636,1775025105584,-151.0,0.0004288,120]
[419230637,1775025105597,-2367.678133,0.0004288,120]
[419230638,1775025105609,-243.309366,0.0004288,120]
[419230639,1775025105620,-973.11877,0.0004288,120]
[419230640,1775025105632,-513.5472,0.0004288,120]
[419230641,1775025105643,-423.578903,0.0004288,120]
[419230642,1775025105654,-151.0,0.0004288,120]
[419230643,1775025105667,-151.0,0.0004288,14]
[419230644,1775025105680,-2367.678133,0.0004288,120]
[419230645,1775025106544,-973.11877,0.0004288,120]
[419230646,1775025106567,-243.309366,0.0004288,120]
[419230647,1775025106589,-513.5472,0.0004288,120]
[419230648,1775025106623,-1064.851919,0.0004288,120]
[419230649,1775025106646,-151.0,0.0004288,120]
[419230650,1775025106656,-423.578903,0.0004288,120]
[419230651,1775025106666,-211.468234,0.0004288,120]
[419230652,1775025106675,-151.0,0.0004288,14]
[419230653,1775025106684,-1064.851919,0.0004288,120]
[419230654,1775025106694,-243.309366,0.0004288,120]
[419230655,1775025106704,-973.11877,0.0004288,120]
[419230656,1775025106715,-1561.847695,0.0004288,120]
[419230657,1775025106725,-151.0,0.0004288,120]
[419230658,1775025106734,-9593.265937,0.0004288,2]
[419230659,1775025106744,-1064.851919,0.0004288,120]
[419230660,1775025106754,-243.309366,0.0004288,120]
[419230661,1775025106763,-1561.847695,0.0004288,120]
[419230662,1775025106773,-151.992603,0.0004288,120]
[419230663,1775025106782,-1940.200176,0.0004288,120]
[419230664,1775025106791,-9593.265937,0.0004288,2]
[419230665,1775025106801,-1064.851919,0.0004288,120]
[419230666,1775025106811,-1561.847695,0.0004288,120]
[419230667,1775025106821,-151.992603,0.0004288,120]
[419230668,1775025106831,-9593.265937,0.0004288,2]
[419230669,1775025106841,-383.21547,0.0004288,120]
[419230670,1775025106851,-1940.200176,0.0004288,120]
[419230671,1775025106863,-6837.039976,0.0004288,120]
[419230672,1775025106873,-342.986034,0.0004288,120]
[419230673,1775025106882,-1561.847695,0.0004288,120]
[419230674,1775025106892,-151.992603,0.0004288,120]
[419230675,1775025106902,-151.0,0.0004288,120]
[419230676,1775025106911,-9593.265937,0.0004288,2]
[419230677,1775025106920,-383.21547,0.0004288,120]
[419230678,1775025106929,-1940.200176,0.0004288,120]
[419230679,1775025106939,-6837.039976,0.0004288,120]
[419230680,1775025106948,-342.986034,0.0004288,120]
[419230681,1775025106957,-151.0,0.0004288,31]
[419230682,1775025106966,-151.992603,0.0004288,120]
[419230683,1775025106975,-231.889918,0.0004288,120]
[419230684,1775025106984,-151.0,0.0004288,120]
[419230685,1775025106994,-383.21547,0.0004288,120]
[419230686,1775025107003,-6837.039976,0.0004288,120]
[419230687,1775025107012,-1940.200176,0.0004288,120]
[419230688,1775025107022,-342.986034,0.0004288,120]
[419230689,1775025107031,-151.0,0.0004288,31]
[419230690,1775025107041,-231.889918,0.0004288,120]
[419230691,1775025107050,-151.0,0.0004288,2]
[419230692,1775025107060,-383.21547,0.0004288,120]
[419230693,1775025107070,-6837.039976,0.0004288,120]
[419230694,1775025107080,-420.0,0.0004288,120]
[419230695,1775025107089,-151.0,0.0004288,120]
[419230696,1775025107099,-342.986034,0.0004288,120]
[419230697,1775025107108,-151.0,0.0004288,31]
[419230698,1775025107118,-151.0,0.0004288,120]
[419230699,1775025107127,-231.889918,0.0004288,120]
[419230700,1775025107137,-420.0,0.0004288,120]
[419230701,1775025107147,-151.0,0.0004288,120]
[419230702,1775025107158,-231.889918,0.0004288,120]
[419230703,1775025107169,-420.0,0.0004288,120]
[419230704,1775025107179,-151.0,0.0004288,120]
[419230705,1775025107189,-151.0,0.0004288,120]
[419230706,1775025107198,-511.966398,0.0004288,120]
[419230707,1775025107207,-151.0,0.0004288,120]
[419230708,1775025107217,-151.0,0.0004288,120]
[419230709,1775025107226,-511.966398,0.0004288,120]
[419230710,1775025107236,-151.0,0.0004288,120]
[419230711,1775025107246,-151.0,0.0004288,120]
[419230712,1775025107256,-511.966398,0.0004288,120]
[419230713,1775025107266,-151.0,0.0004288,120]
[419230714,1775025107277,-511.966398,0.0004288,120]
[419230715,1775025107288,-420.0,0.0004288,120]
[419230716,1775025107298,-268.620778,0.0004288,120]
[419230717,1775025107310,-151.0,0.0004288,7]
[419230718,1775025107322,-151.0,0.0004288,120]
[419230719,1775025107333,-151.0,0.0004288,120]
[419230720,1775025107343,-151.0,0.0004288,120]
[419230721,1775025107353,-151.0,0.0004288,120]
[419230722,1775025107365,-315.586112,0.0004288,120]
[419230723,1775025107376,-315.586112,0.0004288,120]
[419230724,1775025107386,-315.586112,0.0004288,120]
[419230725,1775025107395,-151.0,0.0004288,2]
[419230726,1775025107405,-315.586112,0.0004288,120]
[419230727,1775025107414,-309.815148,0.0004288,120]
[419230728,1775025107426,-309.815148,0.0004288,120]
[419230729,1775025107437,-309.815148,0.0004288,120]
[419230730,1775025107446,-309.815148,0.0004288,120]
[419230731,1775025107456,-184.21400124,0.00042887,30]
[419230732,1775025107465,-300.0,0.00042894,2]
[419230733,1775025107475,-490.0,0.000429,120]
[419230734,1775025107484,-1988.12723973,0.000429,2]
[419230735,1775025107493,-156.99011647,0.00042911,2]
[419230736,1775025107503,-151.0,0.00042933,60]
[419230737,1775025107513,-5926.8377,0.0004294,2]
[419230738,1775025107523,-5926.8377,0.0004294,2]
[419230739,1775025107532,-1200.0,0.00042952,120]
[419230740,1775025107542,-152.0,0.00042955,13]
[419230741,1775025107552,-500.0,0.00042959,30]
[419230742,1775025107562,-201.0,0.00042969,120]
[419230743,1775025107571,-1000.0,0.0004297,3]
[419230744,1775025107580,-500.0,0.0004297,3]
[419230745,1775025107591,-361.70708137,0.00042973,2]
[419230746,1775025107600,-500.0,0.00042974,2]
[419230747,1775025107611,-151.0,0.00042989,60]
[419230748,1775025107621,-253.52176029,0.00042989,60]
[419230749,1775025107632,-500.0,0.00042989,60]
[419230750,1775025107642,-656.37046476,0.0004299,60]
[419230751,1775025107653,-151.0,0.00042996,120]
[419230752,1775025107664,-151.0,0.00042997,120]
[419230753,1775025107674,-467.148629,0.00042999,120]
[419230754,1775025107683,-953.674111,0.00042999,120]
[419230755,1775025107693,-467.148629,0.00042999,120]
[419230756,1775025107704,-953.674111,0.00042999,120]
[419230757,1775025107714,-1156.65377,0.00042999,120]
[419230758,1775025107723,-467.148629,0.00042999,120]
[419230759,1775025107733,-151.0,0.00042999,120]
[419230760,1775025107744,-151.0,0.00042999,120]
[419230761,1775025107754,-953.674111,0.00042999,120]
[419230762,1775025107764,-1156.65377,0.00042999,120]
[419230763,1775025107774,-467.148629,0.00042999,120]
[419230764,1775025107785,-151.0,0.00042999,120]
[419230765,1775025107795,-151.0,0.00042999,120]
[419230766,1775025107804,-533.776339,0.00042999,120]
[419230767,1775025107814,-953.674111,0.00042999,120]
[419230768,1775025107826,-1156.65377,0.00042999,120]
[419230769,1775025107836,-152.068642,0.00042999,120]
[419230770,1775025107847,-151.0,0.00042999,120]
[419230771,1775025107856,-533.776339,0.00042999,120]
[419230772,1775025107866,-1156.65377,0.00042999,120]
[419230773,1775025107876,-152.068642,0.00042999,120]
[419230774,1775025107885,-533.776339,0.00042999,120]
[419230775,1775025107897,-515.679926,0.00042999,120]
[419230776,1775025107907,-439.763631,0.00042999,120]
[419230777,1775025107917,-152.068642,0.00042999,120]
[419230778,1775025107927,-283.450563,0.00042999,120]
[419230779,1775025107937,-533.776339,0.00042999,120]
[419230780,1775025107946,-205.686774,0.00042999,120]
[419230781,1775025107957,-1388.876929,0.00042999,120]
[419230782,1775025107968,-152.068642,0.00042999,120]
[419230783,1775025107979,-515.679926,0.00042999,120]
[419230784,1775025107990,-439.763631,0.00042999,120]
[419230785,1775025108000,-151.0,0.00042999,120]
[419230786,1775025108011,-283.450563,0.00042999,120]
[419230787,1775025108022,-205.686774,0.00042999,120]
[419230788,1775025108031,-1388.876929,0.00042999,120]
[419230789,1775025108043,-515.679926,0.00042999,120]
[419230790,1775025108054,-439.763631,0.00042999,120]
[419230791,1775025108064,-283.450563,0.00042999,120]
[419230792,1775025108075,-205.686774,0.00042999,120]
[419230793,1775025108085,-1388.876929,0.00042999,120]
[419230794,1775025108096,-482.844197,0.00042999,120]
[419230795,1775025108106,-515.679926,0.00042999,120]
[419230796,1775025108117,-439.763631,0.00042999,120]
[419230797,1775025108127,-283.450563,0.00042999,120]
[419230798,1775025108136,-205.686774,0.00042999,120]
[419230799,1775025108146,-482.844197,0.00042999,120]
[419230800,1775025108156,-1388.876929,0.00042999,120]
[419230801,1775025108166,-482.844197,0.00042999,120]
[419230802,1775025108176,-1510.416194,0.00042999,120]
[419230803,1775025108187,-958.80957,0.00042999,120]
[419230804,1775025108197,-482.844197,0.00042999,120]
[419230805,1775025108206,-244.3815,0.00042999,120]
[419230806,1775025108217,-1510.416194,0.00042999,120]
[419230807,1775025108228,-958.80957,0.00042999,120]
[419230808,1775025108240,-244.3815,0.00042999,120]
[419230809,1775025108250,-1510.416194,0.00042999,120]
[419230810,1775025108261,-958.80957,0.00042999,120]
[419230811,1775025108270,-235.924091,0.00042999,30]
[419230812,1775025108281,-244.3815,0.00042999,120]
[419230813,1775025108291,-1510.416194,0.00042999,120]
[419230814,1775025108300,-958.80957,0.00042999,120]
[419230815,1775025108309,-235.924091,0.00042999,30]
[419230816,1775025108318,-244.3815,0.00042999,120]
[419230817,1775025108328,-151.0,0.00042999,120]
[419230818,1775025108338,-235.924091,0.00042999,30]
[419230819,1775025108347,-235.924091,0.00042999,30]
[419230820,1775025108357,-772.867152,0.00042999,7]
[419230821,1775025108368,-151.0,0.00042999,120]
[419230822,1775025108378,-151.0,0.00042999,120]
[419230823,1775025108387,-772.867152,0.00042999,7]
[419230824,1775025108397,-151.0,0.00042999,120]
[419230825,1775025108406,-1963.197785,0.00042999,120]
[419230826,1775025108415,-151.0,0.00042999,120]
[419230827,1775025108424,-1963.197785,0.00042999,120]
[419230828,1775025108434,-772.867152,0.00042999,7]
[419230829,1775025108444,-1963.197785,0.00042999,120]
[419230830,1775025108453,-772.867152,0.00042999,7]
[419230831,1775025108463,-1963.197785,0.00042999,120]
[419230832,1775025108473,-1601.286504,0.00042999,120]
[419230833,1775025108483,-434.923258,0.00042999,120]
[419230834,1775025108492,-1601.286504,0.00042999,120]
[419230835,1775025108502,-2900.360395,0.00042999,5]
[419230836,1775025108511,-434.923258,0.00042999,120]
[419230837,1775025108522,-1601.286504,0.00042999,120]
[419230838,1775025108532,-434.923258,0.00042999,120]
[419230839,1775025108542,-2900.360395,0.00042999,5]
[419230840,1775025108552,-1601.286504,0.00042999,120]
[419230841,1775025108561,-434.923258,0.00042999,120]
[419230842,1775025108571,-2900.360395,0.00042999,5]
[419230843,1775025108581,-245.956086,0.00042999,120]
[419230844,1775025108590,-2900.360395,0.00042999,5]
[419230845,1775025108600,-245.956086,0.00042999,120]
[419230846,1775025108611,-1098.764645,0.00042999,120]
[419230847,1775025108621,-381.584379,0.00042999,120]
[419230848,1775025108630,-281.564222,0.00042999,120]
[419230849,1775025108640,-245.956086,0.00042999,120]
[419230850,1775025108650,-1098.764645,0.00042999,120]
[419230851,1775025108660,-381.584379,0.00042999,120]
[419230852,1775025108671,-245.956086,0.00042999,120]
[419230853,1775025108681,-281.564222,0.00042999,120]
[419230854,1775025108691,-1098.764645,0.00042999,120]
[419230855,1775025108702,-381.584379,0.00042999,120]
[419230856,1775025108711,-281.564222,0.00042999,120]
[419230857,1775025108720,-1098.764645,0.00042999,120]
[419230858,1775025108730,-381.584379,0.00042999,120]
[419230859,1775025108740,-281.564222,0.00042999,120]
[419230860,1775025108750,-151.0,0.00042999,120]
[419230861,1775025108760,-302.638113,0.00042999,120]
[419230862,1775025108771,-302.638113,0.00042999,120]
[419230863,1775025108780,-302.638113,0.00042999,120]
[419230864,1775025108789,-302.638113,0.00042999,120]
[419230865,1775025108799,-200.0,0.00042999,30]
[419230866,1775025108809,-500.0,0.00042999,30]
[419230867,1775025108818,-8565.75555911,0.00042999,30]
[419230868,1775025108828,-1280.88388878,0.00042999,30]
[419230869,1775025108838,-151.0,0.00042999,30]
[419230870,1775025108848,-200.0,0.00042999,30]
[419230871,1775025108857,-200.0,0.00042999,60]
[419230872,1775025108866,-187.78006525,0.00042999,30]
[419230873,1775025108876,-500.0,0.00042999,30]
[419230874,1775025108886,-226.46120389,0.00042999,64]
[419230875,1775025108896,-500.0,0.00042999,30]
[419230876,1775025108907,-151.0,0.00042999,30]
[419230877,1775025108994,-151.0,0.00042999,60]
[419230878,1775025109004,-151.0,0.00042999,64]
[419230879,1775025109013,-151.0,0.00042999,70]
[419230880,1775025109022,-151.0,0.00042999,120]
[419230881,1775025109031,-187.78006525,0.00042999,30]
[419230882,1775025109040,-500.0,0.00042999,30]
[419230883,1775025109050,-500.0,0.00042999,30]
[419230884,1775025109061,-151.0,0.00042999,30]
[419230885,1775025109070,-200.0,0.00042999,30]
[419230886,1775025109079,-621.78829552,0.00042999,30]
[419230887,1775025109087,-500.0,0.00042999,30]
[419230888,1775025109096,-250.0,0.00042999,30]
[419230889,1775025109107,-151.0,0.00042999,30]
[419230890,1775025109116,-1037.0,0.00042999,30]
[419230891,1775025109126,-238.66159918,0.00042999,30]
[419230892,1775025109136,-211.40802048,0.00042999,30]
[419230893,1775025109147,-219.23011724,0.00042999,60]
[419230894,1775025109157,-227.34163157,0.00042999,64]
[419230895,1775025109166,-235.75327194,0.00042999,70]
[419230896,1775025109176,-244.476143,0.00042999,120]
[419230898,1775025109185,-500.0,0.00042999,30]
[419230899,1775025109195,-500.0,0.00042999,60]
[419230900,1775025109204,-500.0,0.00042999,64]
[419230901,1775025109214,-500.0,0.00042999,70]
[419230902,1775025109224,-500.0,0.00042999,120]
[419230903,1775025109234,-250.0,0.00042999,93]
[419230904,1775025109244,-1800.0,0.00043,60]
[419230905,1775025109253,-1800.0,0.00043,60]
[419230906,1775025109262,-1800.0,0.00043,60]
[419230907,1775025109271,-1800.0,0.00043,60]
[419230908,1775025109280,-1800.0,0.00043,60]
[419230909,1775025109289,-1800.0,0.00043,60]
[419230910,1775025109298,-1800.0,0.00043,60]
[419230911,1775025109307,-1800.0,0.00043,60]
[419230912,1775025109315,-1800.0,0.00043,60]
[419230913,1775025109324,-1800.0,0.00043,60]
[419230914,1775025109334,-1800.0,0.00043,60]
[419230915,1775025109344,-1800.0,0.00043,60]
[419230916,1775025109354,-3561.6357977,0.00043,120]
[419230917,1775025109363,-202.0,0.00043,60]
[419230918,1775025109372,-5000.0,0.00043,120]
[419230919,1775025109381,-85000.0,0.00043,120]
[419230920,1775025109391,-10000.0,0.00043,7]
[419230921,1775025109400,-214.0,0.00043,7]
[419230922,1775025109409,-612.14,0.00043,120]
[419230923,1775025109418,-295.27422685,0.00043,120]
[419230924,1775025109427,-6434.97832795,0.00043,120]
[419230925,1775025109436,-1811.30227245,0.00043,2]
[419230926,1775025109446,-766.37738254,0.00043,120]
[419230927,1775025109458,-16040.46839701,0.00043,120]
[419230928,1775025109468,-49843.77396028,0.00043,120]
[419230929,1775025109477,-4227913.83571046,0.00043,120]
[419230931,1775025110505,-1550.58262181,0.00043,120]
[419230932,1775025110528,-539.294502,0.00039726,60]
[419230933,1775025110538,-713.802615,0.0004095,120]
[419230934,1775025110549,-3125.89668811,0.00043,120]
[419230935,1775025110571,-392.50072665,0.00030262,2]
[419230936,1775025111570,-565.6000001,8.635e-05,2]
[419230937,1775025111583,-506.5681281,8.635e-05,2]
[419230938,1775025111598,-28.37683661,8.635e-05,2]
[419230939,1775025111607,-11093.67882116,0.00022834,2]
[419230940,1775025111617,-3126.49927335,0.00030262,2]
[419230941,1775025111626,-3519.0,0.00033262,2]
[419230942,1775025111635,-3519.0,0.00036262,2]
[419230943,1775025111645,-3519.0,0.00039262,2]
[419230944,1775025111654,-485.224635,0.00039726,120]
[419230945,1775025111664,-1207.311356,0.00039726,120]
[419230946,1775025111674,-539.294502,0.00039726,60]
[419230947,1775025111683,-485.224635,0.00039726,120]
[419230948,1775025111692,-1207.311356,0.00039726,120]
[419230949,1775025111702,-713.802615,0.00039726,120]
[419230950,1775025111711,-1300.679918,0.00039726,120]
[419230951,1775025111720,-245.77134824,0.00039726,120]
[419230952,1775025113312,-468.03126676,0.00039726,120]
[419230953,1775025113321,-1300.679918,0.00039726,120]
[419230954,1775025113332,-319.45446335,0.00039726,60]
[419230955,1775025113363,-104.91066733,0.00039726,60]
[419230956,1775025113374,-114.92937132,0.00039726,60]
[419230957,1775025113383,-1058.82159412,0.00039726,120]
[419230958,1775025113401,-148.48976188,0.00039726,120]
[419230959,1775025113411,-485.224635,0.00039726,120]
[419230960,1775025113421,-539.294502,0.00039726,60]
[419230961,1775025113430,-1207.311356,0.00039726,120]
[419230962,1775025113440,-485.224635,0.00039726,120]
[419230963,1775025113449,-1300.679918,0.00039726,120]
[419230964,1775025113458,-539.294502,0.00039726,60]
[419230965,1775025113467,-1300.679918,0.00039726,120]
[419230966,1775025113476,-614.32381682,0.00039726,120]
[419230967,1775025113864,-252.92861016,0.00039726,120]
[419230968,1775025113987,500.0,8.634e-05,2]
[419230969,1775025117603,780.45,8.457e-05,2]
[419230970,1775025118396,1500000.0,8.535e-05,2]
[419230973,1775025120211,-500.0,8.634e-05,2]
[419230974,1775025120248,-500.0,8.634e-05,2]
[419230975,1775025120284,-500.0,8.634e-05,2]
[419230976,1775025120319,-500.0,8.634e-05,2]
[419230977,1775025120353,-500.0,8.634e-05,2]
[419230978,1775025120398,-273.0,8.634e-05,2]
[419230979,1775025120429,-250.0,8.634e-05,2]
[419230980,1775025131524,453.7987,8.535e-05,2]
[419230981,1775025135406,-900.0,8.67e-05,2]
[419230982,1775025150427,-366.29,8.832e-05,2]
[419230983,1775025152404,9267.43,8.535e-05,2]
[419230984,1775025152429,10000.01,8.535e-05,2]
[419230985,1775025152453,10000.01,8.535e-05,2]
[419230986,1775025152478,10000.01,8.535e-05,2]
[419230987,1775025152502,10000.01,8.535e-05,2]
[419230988,1775025152528,10000.01,8.535e-05,2]
[419230989,1775025152552,10000.01,8.535e-05,2]
[419230990,1775025152575,10000.01,8.535e-05,2]
[419230991,1775025152597,5000.01,8.535e-05,2]
[419230992,1775025152620,5000.01,8.535e-05,2]
[419230993,1775025152643,5000.01,8.535e-05,2]
[419230994,1775025152672,495891.24568319,8.535e-05,2]
[419230995,1775025152705,1500000.0,8.535e-05,2]
[419230996,1775025152737,409841.22431681,8.535e-05,2]
[419231000,1775025209258,458.9,8.344e-05,2]
[419231001,1775025232255,10000.01,8.535e-05,2]
[419231002,1775025232280,10000.01,8.535e-05,2]
[419231003,1775025232306,10000.01,8.535e-05,2]
[419231004,1775025232332,5000.01,8.535e-05,2]
[419231005,1775025232356,5000.01,8.535e-05,2]
[419231006,1775025232380,5000.01,8.535e-05,2]
[419231007,1775025232404,5000.01,8.535e-05,2]
[419231008,1775025232436,1449999.93,8.535e-05,2]
[419231009,1775025248270,510.353676,7.945e-05,2]
[419231010,1775025271667,224.29,8.172e-05,2]
[419231012,1775025338969,-278.0,8.909e-05,2]
[419231013,1775025384000,278.0,8.909e-05,2]
[419231017,1775025444684,278.0,8.909e-05,2]
[419231018,1775025492051,10000.01,8.77e-05,2]
[419231019,1775025492074,2776.88,8.77e-05,2]
[419231020,1775025505668,278.0,8.909e-05,2]
[419231022,1775025566838,278.0,8.909e-05,2]
[419231023,1775025591936,500.0,8.742e-05,2]
[419231024,1775025596794,4365.68,8.702e-05,2]
[419231026,1775025627708,278.0,8.909e-05,2]
[419231027,1775025688726,278.0,8.909e-05,2]
[419231028,1775025749745,278.0,8.909e-05,2]
[419231029,1775025759204,-447.4,8.909e-05,2]
[419231030,1775025774283,-250.0,8.918e-05,2]
[419231031,1775025791106,172.48,6.82e-05,2]
[419231032,1775025791297,172.48,7.956e-05,2]
[419231033,1775025912802,500.0,8.619e-05,2]
[419231035,1775026007245,8930.68,8.467e-05,2]
[419231036,1775026059851,150.0,8.9e-05,2]
[419231037,1775026068447,1104.4,7.901e-05,2]
[419231038,1775026068965,964.69,8.73e-05,2]
[419231039,1775026090132,9956.12,8.511e-05,2]
[419231040,1775026132162,150.0,8.9e-05,2]
[419231041,1775026132196,808.6,8.322e-05,2]
[419231042,1775026143707,7436.57,8.512e-05,2]
[419231043,1775026177399,200.0,8.6e-05,2]
[419231044,1775026194037,936.8,8.064e-05,2]
[419231045,1775026202020,150.0,8.9e-05,2]
[419231055,1775026231975,-1081.70667,8.948e-05,2]
[419231056,1775026232132,-118.29333,8.948e-05,2]
[419231057,1775026232142,-300.0,8.948e-05,2]
[419231058,1775026232151,-300.0,8.948e-05,2]
[419231059,1775026232161,-264.0,8.948e-05,2]
[419231060,1775026232170,-150.0,8.948e-05,2]
[419231061,1775026232179,-300.0,8.949e-05,2]
[419231062,1775026232189,-150.0,8.949e-05,2]
[419231063,1775026232198,-1200.0,8.949e-05,2]
[419231064,1775026232208,-250.0,8.949e-05,2]
[419231065,1775026232218,-5000.0,8.949e-05,2]
[419231066,1775026232227,-1000.0,8.949e-05,2]
[419231067,1775026232236,-56790.59091812,8.95e-05,2]
[419231068,1775026232246,-250.0,8.95e-05,2]
[419231069,1775026232255,-5000.0,8.953e-05,2]
[419231070,1775026232264,-5000.0,8.953e-05,2]
[419231071,1775026232273,-5000.0,8.953e-05,2]
[419231072,1775026232282,-500.0,8.958e-05,2]
[419231073,1775026232291,-500.0,8.958e-05,2]
[419231074,1775026232300,-322.80282877,8.958e-05,2]
[419231075,1775026232309,-500.0,8.958e-05,2]
[419231076,1775026232318,-500.0,8.958e-05,2]
[419231077,1775026232327,-500.0,8.958e-05,2]
[419231078,1775026232336,-500.0,8.958e-05,2]
[419231079,1775026232346,-500.0,8.958e-05,2]
[419231080,1775026232355,-500.0,8.958e-05,2]
[419231081,1775026232364,-500.0,8.958e-05,2]
[419231082,1775026232373,-500.0,8.958e-05,2]
[419231083,1775026232383,-500.0,8.958e-05,2]
[419231084,1775026232392,-500.0,8.958e-05,2]
[419231085,1775026232401,-500.0,8.959e-05,2]
[419231086,1775026232410,-160.36303217,8.993e-05,2]
[419231087,1775026232419,-500.51641949,8.993e-05,2]
[419231089,1775026232429,-500.43591004,8.993e-05,2]
[419231090,1775026232438,-501.09046074,8.993e-05,2]
[419231091,1775026232447,-500.0,8.993e-05,2]
[419231092,1775026232457,-848.58627716,9e-05,2]
[419231093,1775026232467,-8082.2118754,9e-05,2]
[419231094,1775026232476,-2098.612,9.016e-05,2]
[419231095,1775026232485,-172.22,9.016e-05,2]
[419231096,1775026232495,-43914.77,9.017e-05,2]
[419231097,1775026232504,-172.48,9.093e-05,2]
[419231098,1775026232513,-1603.44,9.168e-05,2]
[419231099,1775026232523,-239.5,9.193e-05,2]
[419231100,1775026232531,-373.66865711,9.233e-05,2]
[419231101,1775026232541,-375.0,9.237e-05,2]
[419231102,1775026232550,-3588.10117931,9.249e-05,2]
[419231103,1775026232559,-457.0,9.256e-05,2]
[419231104,1775026232568,-404.0,9.274e-05,2]
[419231105,1775026232578,-788.0,9.281e-05,2]
[419231106,1775026232587,-675.0,9.283e-05,2]
[419231107,1775026232596,-287.44762194,9.293e-05,2]
[419231108,1775026232606,-990.0,9.301e-05,2]
[419231109,1775026232615,-313.0,9.32e-05,2]
[419231110,1775026232624,-2657.53479585,9.322e-05,2]
[419231111,1775026232633,-500.73138201,9.323e-05,2]
[419231112,1775026232642,-166.0,9.338e-05,2]
[419231113,1775026232652,-342.85288348,9.348e-05,2]
[419231114,1775026232661,-187.98337992,9.348e-05,2]
[419231115,1775026232670,-604.87851324,9.348e-05,2]
[419231116,1775026232679,-150.0,9.348e-05,2]
[419231117,1775026232688,-150.0,9.348e-05,2]
[419231118,1775026232698,-150.0,9.348e-05,2]
[419231119,1775026232707,-299.92802073,9.348e-05,2]
[419231120,1775026232716,-262513.2748324,9.349e-05,2]
[419231121,1775026232728,-206036.06889293,9.349e-05,2]
[419231122,1775026232740,-230931.76217823,9.349e-05,2]
[419231123,1775026232751,-348653.88797951,9.349e-05,2]
[419231124,1775026232762,-1254.41808677,9.349e-05,2]
[419231137,1775026240283,-47178.35287289,8.949e-05,2]
[419231138,1775026240293,-500.0,8.958e-05,2]
[419231139,1775026240302,-500.0,8.958e-05,2]
[419231140,1775026240312,-500.0,8.958e-05,2]
[419231141,1775026240321,-500.0,8.958e-05,2]
[419231142,1775026240330,-500.0,8.958e-05,2]
[419231143,1775026240339,-500.0,8.958e-05,2]
[419231144,1775026240351,-500.0,8.958e-05,2]
[419231145,1775026240360,-500.0,8.958e-05,2]
[419231146,1775026240369,-500.0,8.958e-05,2]
[419231147,1775026240378,-500.0,8.958e-05,2]
[419231148,1775026240393,-500.0,8.958e-05,2]
[419231149,1775026240402,-500.0,8.958e-05,2]
[419231150,1775026240412,-500.0,8.958e-05,2]
[419231151,1775026240421,-500.0,8.958e-05,2]
[419231152,1775026240430,-500.0,8.958e-05,2]
[419231153,1775026240439,-500.0,8.958e-05,2]
[419231154,1775026240448,-500.0,8.958e-05,2]
[419231155,1775026240458,-500.0,8.958e-05,2]
[419231156,1775026240467,-500.0,8.958e-05,2]
[419231157,1775026240476,-500.0,8.958e-05,2]